[Event "Titled Tuesday Blitz April 05 Early 2022"]
[White "Karolczuk, Iwo"]
[Black "Moskvin, Anatoly"]
[WhiteFideId "21816972"]
[BlackFideId "24199990"]
[WhiteElo "2277"]
[BlackElo "2079"]
[Result "0-1"]
[Round "01"]
[TimeControl "180+1"]
[Date "2022.04.05"]
[WhiteClock "0:00:02"]
[BlackClock "0:00:10"]

1. e4 {[%clk 0:02:58]}  e5 {[%clk 0:02:59]} 2. Nf3 {[%clk 0:02:57]}  d5 {[%clk 0:03:00]} 3. Nc3 {[%clk 0:02:45]}  d4 {[%clk 0:03:00]} 4. Ne2 {[%clk 0:02:45]}  f6 {[%clk 0:03:00]} 5. Ng3 {[%clk 0:02:43]}  Be6 {[%clk 0:03:01]} 6. b3 {[%clk 0:02:42]}  c5 {[%clk 0:02:58]} 7. Bc4 {[%clk 0:02:41]}  Bxc4 {[%clk 0:02:55]} 8. bxc4 {[%clk 0:02:42]}  Nc6 {[%clk 0:02:55]} 9. d3 {[%clk 0:02:40]}  Bd6 {[%clk 0:02:54]} 10. Nf5 {[%clk 0:02:39]}  g6 {[%clk 0:02:50]} 11. Nh6 {[%clk 0:02:32]}  Nxh6 {[%clk 0:02:41]} 12. Bxh6 {[%clk 0:02:32]}  Bc7 {[%clk 0:02:28]} 13. O-O {[%clk 0:02:21]}  Ba5 {[%clk 0:02:27]} 14. Rb1 {[%clk 0:02:20]}  Qd7 {[%clk 0:02:20]} 15. Rb5 {[%clk 0:02:09]}  Bb4 {[%clk 0:02:17]} 16. Bd2 {[%clk 0:01:37]}  a6 {[%clk 0:02:04]} 17. Bxb4 {[%clk 0:01:35]}  axb5 {[%clk 0:02:03]} 18. Bxc5 {[%clk 0:01:36]}  bxc4 {[%clk 0:02:04]} 19. Qb1 {[%clk 0:01:35]}  cxd3 {[%clk 0:01:56]} 20. cxd3 {[%clk 0:01:36]}  Kf7 {[%clk 0:01:54]} 21. Nh4 {[%clk 0:01:32]}  Kg7 {[%clk 0:01:52]} 22. f4 {[%clk 0:01:30]}  b6 {[%clk 0:01:43]} 23. fxe5 {[%clk 0:01:09]}  fxe5 {[%clk 0:01:31]} 24. Qc1 {[%clk 0:00:37]}  bxc5 {[%clk 0:01:02]} 25. Nf5+ {[%clk 0:00:37]}  gxf5 {[%clk 0:00:50]} 26. Qg5+ {[%clk 0:00:35]}  Kf7 {[%clk 0:00:49]} 27. Rxf5+ {[%clk 0:00:36]}  Ke8 {[%clk 0:00:48]} 28. Qh5+ {[%clk 0:00:10]}  Kd8 {[%clk 0:00:45]} 29. Rf7 {[%clk 0:00:10]}  Qe6 {[%clk 0:00:30]} 30. Qg5+ {[%clk 0:00:10]}  Kc8 {[%clk 0:00:30]} 31. Qg7 {[%clk 0:00:10]}  Re8 {[%clk 0:00:15]} 32. Rc7+ {[%clk 0:00:08]}  Kd8 {[%clk 0:00:16]} 33. Rb7 {[%clk 0:00:08]}  Ne7 {[%clk 0:00:13]} 34. Qxh7 {[%clk 0:00:06]}  Kc8 {[%clk 0:00:13]} 35. Rb2 {[%clk 0:00:05]}  Rxa2 {[%clk 0:00:14]} 36. Rb1 {[%clk 0:00:04]}  Qg4 {[%clk 0:00:13]} 37. g3 {[%clk 0:00:04]}  Qe2 {[%clk 0:00:14]} 38. Qh3+ {[%clk 0:00:04]}  Kc7 {[%clk 0:00:12]} 39. Rf1 {[%clk 0:00:04]}  c4 {[%clk 0:00:09]} 40. dxc4 {[%clk 0:00:04]}  d3 {[%clk 0:00:10]} 41. g4 {[%clk 0:00:02]}  d2 {[%clk 0:00:10]} 42. Qg3 {[%clk 0:00:02]}  d1=Q {[%clk 0:00:09]} 43. Qxe5+ {[%clk 0:00:02]}  Qd6 {[%clk 0:00:10]} 0-1


[Site "https://www.chess.com"]

[Event "Titled Tuesday Blitz April 05 Early 2022"]
[White "Kezin, Roman"]
[Black "Perez Rodriguez, Jennifer"]
[WhiteFideId "24124621"]
[BlackFideId "3507831"]
[WhiteElo "2570"]
[BlackElo "2170"]
[Result "1-0"]
[Round "01"]
[TimeControl "180+1"]
[Date "2022.04.05"]
[WhiteClock "0:01:23"]
[BlackClock "0:01:00"]

1. b3 {[%clk 0:03:00]}  e5 {[%clk 0:02:58]} 2. Bb2 {[%clk 0:03:01]}  Nc6 {[%clk 0:02:57]} 3. e3 {[%clk 0:03:01]}  Nf6 {[%clk 0:02:57]} 4. Bb5 {[%clk 0:03:00]}  d6 {[%clk 0:02:49]} 5. Ne2 {[%clk 0:02:51]}  a6 {[%clk 0:02:45]} 6. Bxc6+ {[%clk 0:02:50]}  bxc6 {[%clk 0:02:46]} 7. O-O {[%clk 0:02:49]}  Be7 {[%clk 0:02:45]} 8. d3 {[%clk 0:02:49]}  O-O {[%clk 0:02:44]} 9. e4 {[%clk 0:02:50]}  Nh5 {[%clk 0:02:40]} 10. f4 {[%clk 0:02:47]}  Nxf4 {[%clk 0:02:30]} 11. Nxf4 {[%clk 0:02:48]}  exf4 {[%clk 0:02:31]} 12. Rxf4 {[%clk 0:02:38]}  Bg5 {[%clk 0:02:29]} 13. Rf1 {[%clk 0:02:35]}  f5 {[%clk 0:02:27]} 14. Nc3 {[%clk 0:02:32]}  Be3+ {[%clk 0:02:23]} 15. Kh1 {[%clk 0:02:31]}  Bd4 {[%clk 0:02:24]} 16. Qd2 {[%clk 0:02:16]}  f4 {[%clk 0:02:12]} 17. Rxf4 {[%clk 0:02:00]}  Rxf4 {[%clk 0:01:58]} 18. Qxf4 {[%clk 0:02:01]}  Be5 {[%clk 0:01:49]} 19. Qf2 {[%clk 0:02:00]}  c5 {[%clk 0:01:47]} 20. Na4 {[%clk 0:01:58]}  Qe7 {[%clk 0:01:37]} 21. Bxe5 {[%clk 0:01:55]}  Qxe5 {[%clk 0:01:38]} 22. Rf1 {[%clk 0:01:55]}  Be6 {[%clk 0:01:38]} 23. Qd2 {[%clk 0:01:31]}  Rf8 {[%clk 0:01:12]} 24. Rxf8+ {[%clk 0:01:30]}  Kxf8 {[%clk 0:01:13]} 25. Nc3 {[%clk 0:01:30]}  h6 {[%clk 0:01:04]} 26. a4 {[%clk 0:01:27]}  Qd4 {[%clk 0:01:03]} 27. Ne2 {[%clk 0:01:25]}  Qa1+ {[%clk 0:01:03]} 28. Qc1 {[%clk 0:01:25]}  Qa2 {[%clk 0:01:00]} 29. Nc3 {[%clk 0:01:23]} 1-0


[Site "https://www.chess.com"]

[Event "Titled Tuesday Blitz April 05 Early 2022"]
[White "Korchmar, Vasiliy"]
[Black "Shtyka, Sergey"]
[WhiteFideId "24131750"]
[BlackFideId "4138465"]
[WhiteElo "2370"]
[BlackElo "2014"]
[Result "1-0"]
[Round "01"]
[TimeControl "180+1"]
[Date "2022.04.05"]
[WhiteClock "0:00:03"]
[BlackClock "0:00:07"]

1. d4 {[%clk 0:03:00]}  c5 {[%clk 0:02:58]} 2. d5 {[%clk 0:03:01]}  e5 {[%clk 0:02:58]} 3. e4 {[%clk 0:03:00]}  d6 {[%clk 0:02:58]} 4. Nc3 {[%clk 0:03:00]}  Be7 {[%clk 0:02:58]} 5. Nf3 {[%clk 0:02:59]}  Bg4 {[%clk 0:02:56]} 6. Be2 {[%clk 0:02:54]}  Bxf3 {[%clk 0:02:55]} 7. Bxf3 {[%clk 0:02:54]}  a6 {[%clk 0:02:56]} 8. a4 {[%clk 0:02:54]}  Bg5 {[%clk 0:02:56]} 9. O-O {[%clk 0:02:54]}  Bxc1 {[%clk 0:02:55]} 10. Qxc1 {[%clk 0:02:53]}  Nf6 {[%clk 0:02:56]} 11. Qd2 {[%clk 0:02:28]}  O-O {[%clk 0:02:54]} 12. Rfb1 {[%clk 0:02:23]}  Nbd7 {[%clk 0:02:51]} 13. a5 {[%clk 0:02:17]}  Ne8 {[%clk 0:02:47]} 14. b4 {[%clk 0:02:10]}  cxb4 {[%clk 0:02:46]} 15. Rxb4 {[%clk 0:02:11]}  Nc5 {[%clk 0:02:45]} 16. Rb6 {[%clk 0:02:05]}  Nf6 {[%clk 0:02:19]} 17. Qe3 {[%clk 0:01:16]}  Nfd7 {[%clk 0:02:10]} 18. Rbb1 {[%clk 0:01:02]}  Qc7 {[%clk 0:02:01]} 19. Bd1 {[%clk 0:00:56]}  Rac8 {[%clk 0:01:52]} 20. h3 {[%clk 0:00:54]}  g6 {[%clk 0:01:42]} 21. Bg4 {[%clk 0:00:50]}  Kg7 {[%clk 0:01:39]} 22. Na4 {[%clk 0:00:45]}  Rb8 {[%clk 0:01:34]} 23. Bxd7 {[%clk 0:00:43]}  Nxd7 {[%clk 0:01:32]} 24. Nb6 {[%clk 0:00:43]}  Nxb6 {[%clk 0:01:28]} 25. Rxb6 {[%clk 0:00:41]}  Rfd8 {[%clk 0:01:19]} 26. Rab1 {[%clk 0:00:31]}  Qxc2 {[%clk 0:00:59]} 27. Rxb7 {[%clk 0:00:31]}  Rxb7 {[%clk 0:00:51]} 28. Rxb7 {[%clk 0:00:31]}  Rc8 {[%clk 0:00:39]} 29. Kh2 {[%clk 0:00:04]}  Rc3 {[%clk 0:00:31]} 30. Qa7 {[%clk 0:00:02]}  Qxe4 {[%clk 0:00:07]} 31. Rxf7+ {[%clk 0:00:02]}  Kh6 {[%clk 0:00:07]} 32. Rxh7+ {[%clk 0:00:02]}  Kg5 {[%clk 0:00:08]} 33. Qe7+ {[%clk 0:00:02]}  Kf4 {[%clk 0:00:05]} 34. Rf7+ {[%clk 0:00:02]}  Qf5 {[%clk 0:00:03]} 35. Rxf5+ {[%clk 0:00:02]}  gxf5 {[%clk 0:00:04]} 36. Qxd6 {[%clk 0:00:03]}  Ke4 {[%clk 0:00:05]} 37. Qxa6 {[%clk 0:00:03]}  Rxh3+ {[%clk 0:00:06]} 38. gxh3 {[%clk 0:00:03]}  f4 {[%clk 0:00:06]} 39. Qb6 {[%clk 0:00:03]}  Kf3 {[%clk 0:00:07]} 40. Qb3+ {[%clk 0:00:03]}  Ke4 {[%clk 0:00:07]} 41. Qc2+ {[%clk 0:00:03]} 1-0


[Site "https://www.chess.com"]

[Event "Titled Tuesday Blitz April 05 Early 2022"]
[White "Koridze, Lile"]
[Black "Hasangatin, Ramil"]
[WhiteFideId "13612514"]
[BlackFideId "4122160"]
[WhiteElo "2050"]
[BlackElo "2375"]
[Result "0-1"]
[Round "01"]
[TimeControl "180+1"]
[Date "2022.04.05"]
[WhiteClock "0:01:10"]
[BlackClock "0:01:58"]

1. d4 {[%clk 0:03:00]}  Nf6 {[%clk 0:02:58]} 2. c4 {[%clk 0:03:01]}  c5 {[%clk 0:02:57]} 3. d5 {[%clk 0:03:01]}  e6 {[%clk 0:02:58]} 4. Nc3 {[%clk 0:03:01]}  exd5 {[%clk 0:02:59]} 5. cxd5 {[%clk 0:03:01]}  Bd6 {[%clk 0:03:00]} 6. e4 {[%clk 0:02:45]}  O-O {[%clk 0:02:59]} 7. Nf3 {[%clk 0:02:44]}  Re8 {[%clk 0:02:59]} 8. Bd3 {[%clk 0:02:44]}  Bc7 {[%clk 0:02:59]} 9. O-O {[%clk 0:02:43]}  d6 {[%clk 0:03:00]} 10. h3 {[%clk 0:02:43]}  a6 {[%clk 0:03:00]} 11. a4 {[%clk 0:02:42]}  Nbd7 {[%clk 0:03:01]} 12. Nd2 {[%clk 0:02:42]}  Ne5 {[%clk 0:03:00]} 13. Bc2 {[%clk 0:02:43]}  Rb8 {[%clk 0:03:00]} 14. f4 {[%clk 0:02:43]}  Ng6 {[%clk 0:03:00]} 15. Nf3 {[%clk 0:02:36]}  b5 {[%clk 0:02:59]} 16. axb5 {[%clk 0:02:35]}  axb5 {[%clk 0:03:00]} 17. Re1 {[%clk 0:01:45]}  b4 {[%clk 0:02:54]} 18. Nb1 {[%clk 0:01:44]}  c4 {[%clk 0:02:54]} 19. b3 {[%clk 0:01:42]}  c3 {[%clk 0:02:51]} 20. Nd4 {[%clk 0:01:39]}  Bb6 {[%clk 0:02:51]} 21. Kh1 {[%clk 0:01:38]}  Bxd4 {[%clk 0:02:46]} 22. Qxd4 {[%clk 0:01:37]}  Nh5 {[%clk 0:02:46]} 23. Kh2 {[%clk 0:01:35]}  Nhxf4 {[%clk 0:02:40]} 24. Rf1 {[%clk 0:01:30]}  Qg5 {[%clk 0:02:24]} 25. Qf2 {[%clk 0:01:30]}  Qxg2+ {[%clk 0:02:08]} 26. Qxg2 {[%clk 0:01:30]}  Nxg2 {[%clk 0:02:08]} 27. Kxg2 {[%clk 0:01:30]}  Ne5 {[%clk 0:02:07]} 28. Be3 {[%clk 0:01:28]}  Bd7 {[%clk 0:02:06]} 29. Ra7 {[%clk 0:01:22]}  Bb5 {[%clk 0:02:06]} 30. Rd1 {[%clk 0:01:21]}  Ra8 {[%clk 0:01:59]} 31. Kf2 {[%clk 0:01:09]}  Rxa7 {[%clk 0:01:58]} 32. Bxa7 {[%clk 0:01:10]}  Ra8 {[%clk 0:01:58]} 33. Bb6 {[%clk 0:01:10]}  Ra2 {[%clk 0:01:58]} 0-1


[Site "https://www.chess.com"]

[Event "Titled Tuesday Blitz April 05 Early 2022"]
[White "Kouskoutis, Georgios-Alexandros"]
[Black "Murzin, Volodar"]
[WhiteFideId "4234049"]
[BlackFideId "44155573"]
[WhiteElo "2446"]
[BlackElo "2780"]
[Result "0-1"]
[Round "01"]
[TimeControl "180+1"]
[Date "2022.04.05"]
[WhiteClock "0:00:02"]
[BlackClock "0:02:00"]

1. c4 {[%clk 0:02:58]}  c6 {[%clk 0:02:59]} 2. g3 {[%clk 0:02:58]}  d5 {[%clk 0:03:00]} 3. Bg2 {[%clk 0:02:59]}  Nf6 {[%clk 0:03:01]} 4. Nf3 {[%clk 0:03:00]}  g6 {[%clk 0:03:01]} 5. b3 {[%clk 0:02:59]}  Bg7 {[%clk 0:03:01]} 6. Bb2 {[%clk 0:03:00]}  O-O {[%clk 0:03:02]} 7. O-O {[%clk 0:03:00]}  Nbd7 {[%clk 0:03:02]} 8. Qc2 {[%clk 0:02:59]}  Re8 {[%clk 0:03:02]} 9. d3 {[%clk 0:02:33]}  e5 {[%clk 0:03:00]} 10. cxd5 {[%clk 0:02:32]}  cxd5 {[%clk 0:02:57]} 11. Nc3 {[%clk 0:02:25]}  Nb8 {[%clk 0:02:52]} 12. d4 {[%clk 0:01:57]}  Bf5 {[%clk 0:02:46]} 13. Qd1 {[%clk 0:01:42]}  e4 {[%clk 0:02:42]} 14. Ne5 {[%clk 0:01:41]}  h5 {[%clk 0:02:41]} 15. f3 {[%clk 0:01:31]}  Nc6 {[%clk 0:02:39]} 16. fxe4 {[%clk 0:01:21]}  dxe4 {[%clk 0:02:38]} 17. Nxc6 {[%clk 0:01:15]}  bxc6 {[%clk 0:02:37]} 18. e3 {[%clk 0:01:16]}  Bh6 {[%clk 0:02:35]} 19. Bc1 {[%clk 0:01:06]}  h4 {[%clk 0:02:34]} 20. gxh4 {[%clk 0:00:48]}  Ng4 {[%clk 0:02:26]} 21. Qe1 {[%clk 0:00:45]}  Qc7 {[%clk 0:02:24]} 22. Qg3 {[%clk 0:00:33]}  Bxe3+ {[%clk 0:02:18]} 23. Bxe3 {[%clk 0:00:27]}  Qxg3 {[%clk 0:02:18]} 24. hxg3 {[%clk 0:00:28]}  Nxe3 {[%clk 0:02:18]} 25. Rf2 {[%clk 0:00:21]}  Nd5 {[%clk 0:02:14]} 26. Na4 {[%clk 0:00:08]}  e3 {[%clk 0:02:13]} 27. Re2 {[%clk 0:00:08]}  Bg4 {[%clk 0:02:12]} 28. Ree1 {[%clk 0:00:08]}  Rad8 {[%clk 0:02:13]} 29. Nc5 {[%clk 0:00:04]}  Nb4 {[%clk 0:02:13]} 30. Rac1 {[%clk 0:00:02]}  Rxd4 {[%clk 0:02:11]} 31. a3 {[%clk 0:00:03]}  Nd5 {[%clk 0:02:05]} 32. Bxd5 {[%clk 0:00:02]}  cxd5 {[%clk 0:02:04]} 33. b4 {[%clk 0:00:03]}  Rd2 {[%clk 0:02:03]} 34. Nb3 {[%clk 0:00:02]}  Rd3 {[%clk 0:02:03]} 35. Nc5 {[%clk 0:00:02]}  Rxa3 {[%clk 0:02:03]} 36. b5 {[%clk 0:00:01]}  d4 {[%clk 0:02:03]} 37. Rb1 {[%clk 0:00:01]}  d3 {[%clk 0:02:03]} 38. Rb3 {[%clk 0:00:01]}  Rxb3 {[%clk 0:02:03]} 39. Nxb3 {[%clk 0:00:02]}  Kg7 {[%clk 0:02:00]} 0-1


[Site "https://www.chess.com"]

[Event "Titled Tuesday Blitz April 05 Early 2022"]
[White "Krishna, C R G"]
[Black "Lima, Kleyton Alcantara"]
[WhiteFideId "5018625"]
[BlackFideId "22718397"]
[WhiteElo "2332"]
[BlackElo "1951"]
[Result "1-0"]
[Round "01"]
[TimeControl "180+1"]
[Date "2022.04.05"]
[WhiteClock "0:01:59"]
[BlackClock "0:00:22"]

1. e4 {[%clk 0:02:59]}  c5 {[%clk 0:02:59]} 2. Nc3 {[%clk 0:02:58]}  d6 {[%clk 0:02:53]} 3. f4 {[%clk 0:02:57]}  Nc6 {[%clk 0:02:50]} 4. Nf3 {[%clk 0:02:58]}  g6 {[%clk 0:02:50]} 5. Bc4 {[%clk 0:02:58]}  Bg7 {[%clk 0:02:47]} 6. O-O {[%clk 0:02:58]}  e6 {[%clk 0:02:47]} 7. d3 {[%clk 0:02:59]}  Nge7 {[%clk 0:02:46]} 8. Qe1 {[%clk 0:02:59]}  O-O {[%clk 0:02:25]} 9. f5 {[%clk 0:02:58]}  d5 {[%clk 0:02:24]} 10. Bb3 {[%clk 0:02:35]}  dxe4 {[%clk 0:02:23]} 11. dxe4 {[%clk 0:02:33]}  exf5 {[%clk 0:02:22]} 12. Qh4 {[%clk 0:02:33]}  h5 {[%clk 0:02:22]} 13. Bg5 {[%clk 0:02:29]}  Kh7 {[%clk 0:01:12]} 14. Nd5 {[%clk 0:02:26]}  Re8 {[%clk 0:00:47]} 15. Nf6+ {[%clk 0:02:11]}  Bxf6 {[%clk 0:00:44]} 16. Bxf6 {[%clk 0:02:11]}  c4 {[%clk 0:00:34]} 17. Bxc4 {[%clk 0:02:10]}  Qb6+ {[%clk 0:00:31]} 18. Kh1 {[%clk 0:02:09]}  Be6 {[%clk 0:00:21]} 19. Ng5+ {[%clk 0:02:10]}  Kg8 {[%clk 0:00:21]} 20. Nxe6 {[%clk 0:02:03]}  fxe6 {[%clk 0:00:22]} 21. Bxe6+ {[%clk 0:02:03]}  Kh7 {[%clk 0:00:22]} 22. exf5 {[%clk 0:02:02]}  Nxf5 {[%clk 0:00:22]} 23. Rxf5 {[%clk 0:01:59]} 1-0


[Site "https://www.chess.com"]

[Event "Titled Tuesday Blitz April 05 Early 2022"]
[White "Krysa, Leandro"]
[Black "volunteers1998"]
[WhiteFideId "116807"]
[WhiteElo "2490"]
[BlackElo "2311"]
[Result "1-0"]
[Round "01"]
[TimeControl "180+1"]
[Date "2022.04.05"]
[WhiteClock "0:00:08"]
[BlackClock "0:00:01"]

1. e4 {[%clk 0:03:00]}  c5 {[%clk 0:02:59]} 2. Nf3 {[%clk 0:03:00]}  Nc6 {[%clk 0:02:57]} 3. d4 {[%clk 0:03:01]}  cxd4 {[%clk 0:02:55]} 4. Nxd4 {[%clk 0:03:02]}  Nf6 {[%clk 0:02:53]} 5. Nc3 {[%clk 0:03:01]}  e5 {[%clk 0:02:52]} 6. Ndb5 {[%clk 0:03:00]}  d6 {[%clk 0:02:51]} 7. Bg5 {[%clk 0:03:00]}  a6 {[%clk 0:02:49]} 8. Na3 {[%clk 0:03:00]}  b5 {[%clk 0:02:48]} 9. Nab1 {[%clk 0:02:50]}  Be7 {[%clk 0:02:45]} 10. Bxf6 {[%clk 0:02:44]}  Bxf6 {[%clk 0:02:45]} 11. a4 {[%clk 0:02:44]}  b4 {[%clk 0:02:40]} 12. Nd5 {[%clk 0:02:44]}  O-O {[%clk 0:02:38]} 13. Bc4 {[%clk 0:02:42]}  Be6 {[%clk 0:02:31]} 14. Qd3 {[%clk 0:02:38]}  Bg5 {[%clk 0:02:29]} 15. O-O {[%clk 0:02:12]}  Kh8 {[%clk 0:02:24]} 16. Nd2 {[%clk 0:01:58]}  f5 {[%clk 0:02:20]} 17. exf5 {[%clk 0:01:57]}  Bxf5 {[%clk 0:02:14]} 18. Ne4 {[%clk 0:01:57]}  a5 {[%clk 0:02:06]} 19. Rfe1 {[%clk 0:01:48]}  Rc8 {[%clk 0:01:56]} 20. c3 {[%clk 0:01:47]}  bxc3 {[%clk 0:01:51]} 21. bxc3 {[%clk 0:01:47]}  Qe8 {[%clk 0:01:43]} 22. Qg3 {[%clk 0:01:21]}  Bxe4 {[%clk 0:01:31]} 23. Rxe4 {[%clk 0:01:20]}  Bh6 {[%clk 0:01:19]} 24. Bb5 {[%clk 0:01:13]}  Qf7 {[%clk 0:01:13]} 25. Rd1 {[%clk 0:01:07]}  Ne7 {[%clk 0:01:11]} 26. Nxe7 {[%clk 0:01:01]}  Qxe7 {[%clk 0:01:10]} 27. c4 {[%clk 0:00:56]}  Rf6 {[%clk 0:01:02]} 28. Qd3 {[%clk 0:00:53]}  Rcf8 {[%clk 0:00:58]} 29. f3 {[%clk 0:00:53]}  Bf4 {[%clk 0:00:51]} 30. Rf1 {[%clk 0:00:35]}  Rc8 {[%clk 0:00:46]} 31. g3 {[%clk 0:00:32]}  Bh6 {[%clk 0:00:44]} 32. Kg2 {[%clk 0:00:33]}  Qc7 {[%clk 0:00:38]} 33. Rd1 {[%clk 0:00:30]}  Qc5 {[%clk 0:00:35]} 34. Re2 {[%clk 0:00:30]}  g6 {[%clk 0:00:32]} 35. Qd5 {[%clk 0:00:30]}  Qxd5 {[%clk 0:00:30]} 36. Rxd5 {[%clk 0:00:30]}  Bf8 {[%clk 0:00:27]} 37. Rb2 {[%clk 0:00:26]}  Rb8 {[%clk 0:00:23]} 38. Rdd2 {[%clk 0:00:23]}  Rf7 {[%clk 0:00:18]} 39. Bc6 {[%clk 0:00:23]}  Rxb2 {[%clk 0:00:16]} 40. Rxb2 {[%clk 0:00:24]}  Kg7 {[%clk 0:00:10]} 41. Rb5 {[%clk 0:00:20]}  Rc7 {[%clk 0:00:10]} 42. Bd5 {[%clk 0:00:19]}  Rc5 {[%clk 0:00:09]} 43. Rb7+ {[%clk 0:00:18]}  Kh6 {[%clk 0:00:09]} 44. h4 {[%clk 0:00:15]}  g5 {[%clk 0:00:06]} 45. hxg5+ {[%clk 0:00:14]}  Kxg5 {[%clk 0:00:06]} 46. Rxh7 {[%clk 0:00:15]}  Bh6 {[%clk 0:00:02]} 47. Rd7 {[%clk 0:00:10]}  Kf6 {[%clk 0:00:02]} 48. Rxd6+ {[%clk 0:00:10]}  Kg7 {[%clk 0:00:01]} 49. Re6 {[%clk 0:00:08]}  Be3 {[%clk 0:00:01]} 50. Rxe5 {[%clk 0:00:08]}  Bd4 {[%clk 0:00:01]} 51. Re6 {[%clk 0:00:08]} 1-0


[Site "https://www.chess.com"]

[Event "Titled Tuesday Blitz April 05 Early 2022"]
[White "Lakshmi C"]
[Black "Arabidze, Meri"]
[WhiteFideId "25035347"]
[BlackFideId "13604040"]
[WhiteElo "1775"]
[BlackElo "2335"]
[Result "0-1"]
[Round "01"]
[TimeControl "180+1"]
[Date "2022.04.05"]
[WhiteClock "0:00:02"]
[BlackClock "0:00:46"]

1. e4 {[%clk 0:03:00]}  c5 {[%clk 0:02:59]} 2. Nf3 {[%clk 0:02:59]}  e6 {[%clk 0:02:59]} 3. d4 {[%clk 0:02:59]}  cxd4 {[%clk 0:02:56]} 4. Nxd4 {[%clk 0:02:59]}  Nc6 {[%clk 0:02:57]} 5. Nc3 {[%clk 0:02:55]}  a6 {[%clk 0:02:57]} 6. a4 {[%clk 0:02:51]}  Nf6 {[%clk 0:02:54]} 7. Bg5 {[%clk 0:02:48]}  Qc7 {[%clk 0:02:51]} 8. Be2 {[%clk 0:02:43]}  Be7 {[%clk 0:02:50]} 9. Be3 {[%clk 0:02:40]}  O-O {[%clk 0:02:50]} 10. O-O {[%clk 0:02:38]}  d6 {[%clk 0:02:46]} 11. Nb3 {[%clk 0:02:37]}  b6 {[%clk 0:02:44]} 12. f4 {[%clk 0:02:35]}  Bb7 {[%clk 0:02:44]} 13. Bf3 {[%clk 0:02:35]}  Rfd8 {[%clk 0:02:38]} 14. Qe2 {[%clk 0:02:30]}  Nd7 {[%clk 0:02:36]} 15. Rad1 {[%clk 0:02:24]}  Nc5 {[%clk 0:02:36]} 16. Qf2 {[%clk 0:02:23]}  Nb4 {[%clk 0:02:27]} 17. Rd4 {[%clk 0:02:15]}  Nc6 {[%clk 0:02:20]} 18. Rdd1 {[%clk 0:02:15]}  Rac8 {[%clk 0:02:15]} 19. Rd2 {[%clk 0:02:04]}  h6 {[%clk 0:02:10]} 20. Rfd1 {[%clk 0:02:04]}  Bf6 {[%clk 0:01:59]} 21. Nd4 {[%clk 0:01:24]}  Nxd4 {[%clk 0:01:49]} 22. Bxd4 {[%clk 0:01:21]}  e5 {[%clk 0:01:49]} 23. Be3 {[%clk 0:01:21]}  exf4 {[%clk 0:01:44]} 24. Bxf4 {[%clk 0:01:16]}  Be5 {[%clk 0:01:45]} 25. Bxe5 {[%clk 0:00:27]}  dxe5 {[%clk 0:01:45]} 26. Nd5 {[%clk 0:00:27]}  Bxd5 {[%clk 0:01:41]} 27. exd5 {[%clk 0:00:27]}  Qd6 {[%clk 0:01:31]} 28. b3 {[%clk 0:00:09]}  a5 {[%clk 0:01:31]} 29. Qg3 {[%clk 0:00:07]}  Rc7 {[%clk 0:01:29]} 30. Qg4 {[%clk 0:00:06]}  Re7 {[%clk 0:01:24]} 31. Qc4 {[%clk 0:00:03]}  f5 {[%clk 0:01:21]} 32. Bh5 {[%clk 0:00:02]}  Kh8 {[%clk 0:01:21]} 33. Qb5 {[%clk 0:00:02]}  e4 {[%clk 0:01:15]} 34. Qc6 {[%clk 0:00:02]}  e3 {[%clk 0:01:06]} 35. Qxd6 {[%clk 0:00:01]}  Rxd6 {[%clk 0:01:07]} 36. Re2 {[%clk 0:00:02]}  f4 {[%clk 0:01:08]} 37. Rd4 {[%clk 0:00:02]}  g5 {[%clk 0:01:07]} 38. Bf3 {[%clk 0:00:02]}  Nd7 {[%clk 0:00:56]} 39. h3 {[%clk 0:00:01]}  Ne5 {[%clk 0:00:55]} 40. Be4 {[%clk 0:00:01]}  Rc7 {[%clk 0:00:51]} 41. c4 {[%clk 0:00:01]}  Nd7 {[%clk 0:00:50]} 42. Bc2 {[%clk 0:00:02]}  Nc5 {[%clk 0:00:50]} 43. g3 {[%clk 0:00:02]}  Rf7 {[%clk 0:00:48]} 44. gxf4 {[%clk 0:00:02]}  gxf4 {[%clk 0:00:49]} 45. Rg2 {[%clk 0:00:02]}  f3 {[%clk 0:00:46]} 0-1


[Site "https://www.chess.com"]

[Event "Titled Tuesday Blitz April 05 Early 2022"]
[White "Lewicki, Miroslaw"]
[Black "Hartikainen, Jarmo"]
[WhiteFideId "1113380"]
[BlackFideId "503134"]
[WhiteElo "2283"]
[BlackElo "2070"]
[Result "0-1"]
[Round "01"]
[TimeControl "180+1"]
[Date "2022.04.05"]
[WhiteClock "0:01:28"]
[BlackClock "0:00:21"]

1. g3 {[%clk 0:03:00]}  g6 {[%clk 0:02:59]} 2. Bg2 {[%clk 0:03:00]}  Bg7 {[%clk 0:02:59]} 3. Nf3 {[%clk 0:02:40]}  e5 {[%clk 0:02:57]} 4. O-O {[%clk 0:02:40]}  Ne7 {[%clk 0:02:56]} 5. d4 {[%clk 0:02:40]}  e4 {[%clk 0:02:51]} 6. Ne5 {[%clk 0:02:40]}  d6 {[%clk 0:02:48]} 7. Nc4 {[%clk 0:02:38]}  d5 {[%clk 0:02:47]} 8. Ne3 {[%clk 0:02:34]}  O-O {[%clk 0:02:44]} 9. c4 {[%clk 0:02:34]}  c6 {[%clk 0:02:45]} 10. Nc3 {[%clk 0:02:34]}  Be6 {[%clk 0:02:26]} 11. b3 {[%clk 0:02:19]}  Na6 {[%clk 0:01:53]} 12. Bb2 {[%clk 0:02:19]}  Qd7 {[%clk 0:01:41]} 13. Rc1 {[%clk 0:02:16]}  Rfd8 {[%clk 0:01:39]} 14. cxd5 {[%clk 0:02:14]}  cxd5 {[%clk 0:01:36]} 15. f3 {[%clk 0:02:12]}  f5 {[%clk 0:01:33]} 16. fxe4 {[%clk 0:02:12]}  fxe4 {[%clk 0:01:33]} 17. Na4 {[%clk 0:02:09]}  Rac8 {[%clk 0:01:23]} 18. Rxc8 {[%clk 0:02:07]}  Rxc8 {[%clk 0:01:22]} 19. Ba3 {[%clk 0:02:08]}  b6 {[%clk 0:00:54]} 20. Nc2 {[%clk 0:01:42]}  Nf5 {[%clk 0:00:45]} 21. e3 {[%clk 0:01:39]}  Rxc2 {[%clk 0:00:43]} 22. Qxc2 {[%clk 0:01:40]}  Nxe3 {[%clk 0:00:43]} 23. Qe2 {[%clk 0:01:40]}  Nxf1 {[%clk 0:00:43]} 24. Qxa6 {[%clk 0:01:41]}  Ne3 {[%clk 0:00:35]} 25. Bb2 {[%clk 0:01:33]}  Nxg2 {[%clk 0:00:34]} 26. Kxg2 {[%clk 0:01:34]}  Bh3+ {[%clk 0:00:33]} 27. Kg1 {[%clk 0:01:32]}  h5 {[%clk 0:00:33]} 28. Qe2 {[%clk 0:01:29]}  Bg4 {[%clk 0:00:32]} 29. Qd2 {[%clk 0:01:29]}  Kh7 {[%clk 0:00:31]} 30. Nc3 {[%clk 0:01:29]}  Bh6 {[%clk 0:00:31]} 31. Qe1 {[%clk 0:01:30]}  Qf7 {[%clk 0:00:27]} 32. Ne2 {[%clk 0:01:29]}  Be3+ {[%clk 0:00:25]} 33. Kg2 {[%clk 0:01:28]}  Qf3# {[%clk 0:00:21]} 0-1


[Site "https://www.chess.com"]